[Event "Titled Tuesday Blitz February 21 Early 2023"]
[White "Lucassen, Mickey"]
[Black "Cramling Bellon, Anna"]
[WhiteFideId "12919110"]
[BlackFideId "32009232"]
[WhiteElo "2023"]
[BlackElo "2043"]
[Result "1-0"]
[Round "09"]
[TimeControl "180+2"]
[Date "2023.02.21"]
[WhiteClock "0:00:04"]
[BlackClock "0:00:01"]

1. e4 {[%clk 0:03:00]}  c5 {[%clk 0:02:58]} 2. Nc3 {[%clk 0:03:00]}  Nc6 {[%clk 0:02:54]} 3. Bb5 {[%clk 0:03:00]}  Nd4 {[%clk 0:02:53]} 4. Bc4 {[%clk 0:02:59]}  e6 {[%clk 0:02:53]} 5. Nf3 {[%clk 0:02:59]}  d6 {[%clk 0:02:45]} 6. Nxd4 {[%clk 0:02:54]}  cxd4 {[%clk 0:02:46]} 7. Ne2 {[%clk 0:02:54]}  e5 {[%clk 0:02:44]} 8. O-O {[%clk 0:02:52]}  Nf6 {[%clk 0:02:44]} 9. d3 {[%clk 0:02:52]}  Be7 {[%clk 0:02:44]} 10. h3 {[%clk 0:02:51]}  O-O {[%clk 0:02:44]} 11. f4 {[%clk 0:02:51]}  Be6 {[%clk 0:02:42]} 12. Bxe6 {[%clk 0:02:50]}  fxe6 {[%clk 0:02:42]} 13. fxe5 {[%clk 0:02:50]}  dxe5 {[%clk 0:02:43]} 14. Bd2 {[%clk 0:02:43]}  Rc8 {[%clk 0:02:34]} 15. Ng3 {[%clk 0:02:31]}  Qb6 {[%clk 0:02:32]} 16. b3 {[%clk 0:02:28]}  Qc6 {[%clk 0:02:15]} 17. Qe2 {[%clk 0:01:40]}  Qxc2 {[%clk 0:02:10]} 18. b4 {[%clk 0:01:07]}  Qa4 {[%clk 0:02:02]} 19. Nh5 {[%clk 0:00:58]}  Rc2 {[%clk 0:01:33]} 20. Nxf6+ {[%clk 0:00:55]}  Rxf6 {[%clk 0:01:28]} 21. Rxf6 {[%clk 0:00:54]}  Bxf6 {[%clk 0:01:28]} 22. Qg4 {[%clk 0:00:17]}  Rxd2 {[%clk 0:01:17]} 23. Qxe6+ {[%clk 0:00:17]}  Kf8 {[%clk 0:01:17]} 24. Rc1 {[%clk 0:00:16]}  Rd1+ {[%clk 0:01:13]} 25. Rxd1 {[%clk 0:00:16]}  Qxd1+ {[%clk 0:01:13]} 26. Kh2 {[%clk 0:00:17]}  Qc2 {[%clk 0:00:59]} 27. Qd6+ {[%clk 0:00:16]}  Ke8 {[%clk 0:00:59]} 28. Qb8+ {[%clk 0:00:16]}  Kd7 {[%clk 0:00:53]} 29. Qxb7+ {[%clk 0:00:16]}  Qc7 {[%clk 0:00:53]} 30. Qd5+ {[%clk 0:00:16]}  Qd6 {[%clk 0:00:50]} 31. Qb7+ {[%clk 0:00:16]}  Ke8 {[%clk 0:00:42]} 32. b5 {[%clk 0:00:12]}  Qb6 {[%clk 0:00:38]} 33. Qc8+ {[%clk 0:00:11]}  Bd8 {[%clk 0:00:38]} 34. a4 {[%clk 0:00:11]}  Qf6 {[%clk 0:00:28]} 35. a5 {[%clk 0:00:07]}  Qf4+ {[%clk 0:00:27]} 36. Kg1 {[%clk 0:00:07]}  Qe3+ {[%clk 0:00:27]} 37. Kh1 {[%clk 0:00:06]}  Qe1+ {[%clk 0:00:22]} 38. Kh2 {[%clk 0:00:06]}  Qxa5 {[%clk 0:00:22]} 39. Qe6+ {[%clk 0:00:06]}  Be7 {[%clk 0:00:21]} 40. Qxe5 {[%clk 0:00:07]}  Qb6 {[%clk 0:00:18]} 41. Qxg7 {[%clk 0:00:06]}  Qxb5 {[%clk 0:00:13]} 42. Qxd4 {[%clk 0:00:05]}  Qc5 {[%clk 0:00:05]} 43. Qh8+ {[%clk 0:00:05]}  Kd7 {[%clk 0:00:04]} 44. Qxh7 {[%clk 0:00:02]}  Qd6+ {[%clk 0:00:02]} 45. g3 {[%clk 0:00:03]}  Qxd3 {[%clk 0:00:02]} 46. Qf5+ {[%clk 0:00:03]}  Kd6 {[%clk 0:00:01]} 47. e5+ {[%clk 0:00:03]}  Kc7 {[%clk 0:00:01]} 48. Qxd3 {[%clk 0:00:04]} 1-0


[Site "https://www.chess.com"]

[Event "Titled Tuesday Blitz February 21 Early 2023"]
[White "Rios Escobar, Adan"]
[Black "lisjakzlatko1"]
[WhiteFideId "3403645"]
[WhiteElo "2234"]
[BlackElo "2162"]
[Result "1-0"]
[Round "09"]
[TimeControl "180+2"]
[Date "2023.02.21"]
[WhiteClock "0:00:02"]
[BlackClock "0:00:02"]

1. d4 {[%clk 0:03:00]}  d6 {[%clk 0:02:59]} 2. g3 {[%clk 0:03:00]}  e5 {[%clk 0:02:54]} 3. dxe5 {[%clk 0:02:59]}  dxe5 {[%clk 0:02:53]} 4. Qxd8+ {[%clk 0:03:00]}  Kxd8 {[%clk 0:02:52]} 5. e4 {[%clk 0:03:00]}  c6 {[%clk 0:02:50]} 6. f4 {[%clk 0:03:00]}  f6 {[%clk 0:02:34]} 7. Nf3 {[%clk 0:02:58]}  Nd7 {[%clk 0:02:26]} 8. Nc3 {[%clk 0:02:52]}  Bb4 {[%clk 0:02:20]} 9. Bd2 {[%clk 0:02:50]}  Nh6 {[%clk 0:02:11]} 10. Bh3 {[%clk 0:02:42]}  Nf7 {[%clk 0:02:03]} 11. O-O-O {[%clk 0:02:41]}  Kc7 {[%clk 0:02:02]} 12. Nb5+ {[%clk 0:02:32]}  cxb5 {[%clk 0:01:53]} 13. Bxb4 {[%clk 0:02:33]}  Nb6 {[%clk 0:01:31]} 14. Bf1 {[%clk 0:02:31]}  Nc4 {[%clk 0:01:22]} 15. b3 {[%clk 0:02:07]}  Ne3 {[%clk 0:01:08]} 16. Rd3 {[%clk 0:01:39]}  Nxf1 {[%clk 0:00:55]} 17. Rxf1 {[%clk 0:01:35]}  a5 {[%clk 0:00:52]} 18. Bc5 {[%clk 0:01:26]}  b6 {[%clk 0:00:43]} 19. Bf2 {[%clk 0:01:18]}  Bb7 {[%clk 0:00:40]} 20. Rc3+ {[%clk 0:01:16]}  Bc6 {[%clk 0:00:33]} 21. Ne1 {[%clk 0:00:25]}  Kb7 {[%clk 0:00:32]} 22. Re3 {[%clk 0:00:19]}  a4 {[%clk 0:00:27]} 23. Kb2 {[%clk 0:00:17]}  Nd6 {[%clk 0:00:23]} 24. Nd3 {[%clk 0:00:17]}  Nxe4 {[%clk 0:00:19]} 25. fxe5 {[%clk 0:00:16]}  a3+ {[%clk 0:00:18]} 26. Kc1 {[%clk 0:00:14]}  fxe5 {[%clk 0:00:15]} 27. Nxe5 {[%clk 0:00:13]}  Bd5 {[%clk 0:00:15]} 28. c4 {[%clk 0:00:09]}  Nxf2 {[%clk 0:00:13]} 29. Rxf2 {[%clk 0:00:05]}  Be6 {[%clk 0:00:10]} 30. cxb5 {[%clk 0:00:04]}  Rhe8 {[%clk 0:00:09]} 31. Nd3 {[%clk 0:00:03]}  Bd5 {[%clk 0:00:06]} 32. Rfe2 {[%clk 0:00:03]}  Rec8+ {[%clk 0:00:05]} 33. Kd2 {[%clk 0:00:03]}  Rc7 {[%clk 0:00:04]} 34. Nb4 {[%clk 0:00:04]}  Bxb3 {[%clk 0:00:03]} 35. axb3 {[%clk 0:00:03]}  a2 {[%clk 0:00:02]} 36. Nxa2 {[%clk 0:00:02]} 1-0


[Site "https://www.chess.com"]

[Event "Titled Tuesday Blitz February 21 Early 2023"]
[White "Mayaud, Raphael"]
[Black "Burke, John F"]
[WhiteFideId "627151"]
[BlackFideId "2052970"]
[WhiteElo "2201"]
[BlackElo "2013"]
[Result "1-0"]
[Round "09"]
[TimeControl "180+2"]
[Date "2023.02.21"]
[WhiteClock "0:00:32"]
[BlackClock "0:01:29"]

1. d4 {[%clk 0:03:00]}  c5 {[%clk 0:02:58]} 2. d5 {[%clk 0:03:00]}  d6 {[%clk 0:02:59]} 3. Nc3 {[%clk 0:02:59]}  e5 {[%clk 0:02:59]} 4. e4 {[%clk 0:02:55]}  Ne7 {[%clk 0:02:59]} 5. f4 {[%clk 0:02:52]}  exf4 {[%clk 0:02:56]} 6. Bxf4 {[%clk 0:02:50]}  Ng6 {[%clk 0:02:57]} 7. Bg3 {[%clk 0:02:44]}  a6 {[%clk 0:02:57]} 8. a4 {[%clk 0:02:44]}  Be7 {[%clk 0:02:57]} 9. Bc4 {[%clk 0:02:43]}  Nd7 {[%clk 0:02:55]} 10. Nf3 {[%clk 0:02:42]}  O-O {[%clk 0:02:54]} 11. O-O {[%clk 0:02:42]}  Qc7 {[%clk 0:02:55]} 12. Qe2 {[%clk 0:02:25]}  Bf6 {[%clk 0:02:53]} 13. h3 {[%clk 0:02:18]}  Re8 {[%clk 0:02:53]} 14. Rae1 {[%clk 0:02:17]}  Nde5 {[%clk 0:02:53]} 15. Nxe5 {[%clk 0:02:17]}  Bxe5 {[%clk 0:02:51]} 16. Rf3 {[%clk 0:02:07]}  Qe7 {[%clk 0:02:43]} 17. Ref1 {[%clk 0:02:04]}  f6 {[%clk 0:02:43]} 18. Nd1 {[%clk 0:02:01]}  Bd7 {[%clk 0:02:41]} 19. Nc3 {[%clk 0:01:33]}  Rab8 {[%clk 0:02:38]} 20. a5 {[%clk 0:01:32]}  Bxc3 {[%clk 0:02:26]} 21. bxc3 {[%clk 0:01:32]}  Qxe4 {[%clk 0:02:26]} 22. Qxe4 {[%clk 0:01:27]}  Rxe4 {[%clk 0:02:26]} 23. Bd3 {[%clk 0:01:25]}  Re5 {[%clk 0:02:23]} 24. Bxg6 {[%clk 0:01:22]}  hxg6 {[%clk 0:02:22]} 25. Bxe5 {[%clk 0:01:23]}  dxe5 {[%clk 0:02:22]} 26. c4 {[%clk 0:01:21]}  Bf5 {[%clk 0:02:18]} 27. Rc3 {[%clk 0:01:10]}  Rd8 {[%clk 0:01:58]} 28. Rb1 {[%clk 0:01:09]}  Bc8 {[%clk 0:01:58]} 29. Rb6 {[%clk 0:01:07]}  Kf7 {[%clk 0:01:58]} 30. Kf2 {[%clk 0:01:06]}  g5 {[%clk 0:01:57]} 31. Rcb3 {[%clk 0:00:56]}  Kg6 {[%clk 0:01:45]} 32. g4 {[%clk 0:00:47]}  Rh8 {[%clk 0:01:44]} 33. Kg3 {[%clk 0:00:47]}  Re8 {[%clk 0:01:40]} 34. d6 {[%clk 0:00:32]}  Rd8 {[%clk 0:01:38]} 35. Rd3 {[%clk 0:00:31]}  Rd7 {[%clk 0:01:38]} 36. Rd5 {[%clk 0:00:31]}  Kf7 {[%clk 0:01:38]} 37. Rxc5 {[%clk 0:00:31]}  Ke6 {[%clk 0:01:38]} 38. Rc7 {[%clk 0:00:32]}  Rxd6 {[%clk 0:01:29]} 39. Rxd6+ {[%clk 0:00:31]}  Kxd6 {[%clk 0:01:29]} 40. Rxc8 {[%clk 0:00:32]} 1-0


[Site "https://www.chess.com"]

[Event "Titled Tuesday Blitz February 21 Early 2023"]
[White "Simonovic, Miroslav"]
[Black "Mushini Ajay"]
[WhiteFideId "919152"]
[BlackFideId "35066188"]
[WhiteElo "2082"]
[BlackElo "2310"]
[Result "1-0"]
[Round "09"]
[TimeControl "180+2"]
[Date "2023.02.21"]
[WhiteClock "0:00:10"]
[BlackClock "0:00:02"]

1. d4 {[%clk 0:03:00]}  Nf6 {[%clk 0:02:57]} 2. Bg5 {[%clk 0:03:01]}  d5 {[%clk 0:02:55]} 3. Bxf6 {[%clk 0:03:01]}  exf6 {[%clk 0:02:56]} 4. e3 {[%clk 0:03:02]}  Bd6 {[%clk 0:02:57]} 5. c4 {[%clk 0:03:02]}  O-O {[%clk 0:02:58]} 6. cxd5 {[%clk 0:03:02]}  Bb4+ {[%clk 0:02:56]} 7. Nc3 {[%clk 0:03:02]}  Qxd5 {[%clk 0:02:55]} 8. Ne2 {[%clk 0:03:00]}  Qd8 {[%clk 0:02:25]} 9. a3 {[%clk 0:02:58]}  Bd6 {[%clk 0:02:22]} 10. g3 {[%clk 0:02:57]}  c5 {[%clk 0:02:22]} 11. Bg2 {[%clk 0:02:56]}  Nc6 {[%clk 0:02:22]} 12. d5 {[%clk 0:02:51]}  Ne5 {[%clk 0:02:20]} 13. O-O {[%clk 0:02:51]}  h5 {[%clk 0:02:19]} 14. h4 {[%clk 0:02:50]}  Ng4 {[%clk 0:02:18]} 15. Ne4 {[%clk 0:02:40]}  b6 {[%clk 0:02:00]} 16. Nxd6 {[%clk 0:02:38]}  Qxd6 {[%clk 0:02:01]} 17. Nf4 {[%clk 0:02:39]}  g6 {[%clk 0:01:56]} 18. Qc2 {[%clk 0:02:31]}  Bf5 {[%clk 0:01:38]} 19. e4 {[%clk 0:02:13]}  Bd7 {[%clk 0:01:36]} 20. Rfe1 {[%clk 0:02:11]}  Rfe8 {[%clk 0:01:35]} 21. Rad1 {[%clk 0:02:08]}  b5 {[%clk 0:01:30]} 22. Nd3 {[%clk 0:01:53]}  Rac8 {[%clk 0:01:20]} 23. f4 {[%clk 0:01:46]}  a5 {[%clk 0:01:13]} 24. Nf2 {[%clk 0:01:39]}  c4 {[%clk 0:01:02]} 25. Nxg4 {[%clk 0:01:34]}  Bxg4 {[%clk 0:01:03]} 26. Rd2 {[%clk 0:01:25]}  c3 {[%clk 0:01:01]} 27. bxc3 {[%clk 0:01:22]}  Qxa3 {[%clk 0:01:01]} 28. Rc1 {[%clk 0:01:14]}  b4 {[%clk 0:00:55]} 29. c4 {[%clk 0:01:14]}  Qxg3 {[%clk 0:00:54]} 30. Rf2 {[%clk 0:01:05]}  Rc5 {[%clk 0:00:38]} 31. Qd2 {[%clk 0:00:46]}  Qxh4 {[%clk 0:00:19]} 32. Qd4 {[%clk 0:00:46]}  Rb8 {[%clk 0:00:19]} 33. Qxc5 {[%clk 0:00:45]}  Qg3 {[%clk 0:00:18]} 34. Qd6 {[%clk 0:00:28]}  Rc8 {[%clk 0:00:15]} 35. Qxf6 {[%clk 0:00:26]}  h4 {[%clk 0:00:15]} 36. Rcf1 {[%clk 0:00:13]}  h3 {[%clk 0:00:11]} 37. f5 {[%clk 0:00:12]}  gxf5 {[%clk 0:00:06]} 38. exf5 {[%clk 0:00:11]}  Rxc4 {[%clk 0:00:06]} 39. Qg5+ {[%clk 0:00:11]}  Kf8 {[%clk 0:00:06]} 40. f6 {[%clk 0:00:11]}  hxg2 {[%clk 0:00:05]} 41. Rxg2 {[%clk 0:00:10]}  Qh3 {[%clk 0:00:05]} 42. Qe5 {[%clk 0:00:09]}  Be6 {[%clk 0:00:03]} 43. Qb8+ {[%clk 0:00:09]}  Rc8 {[%clk 0:00:02]} 44. Qg3 {[%clk 0:00:09]}  Qxg3 {[%clk 0:00:02]} 45. Rxg3 {[%clk 0:00:10]}  Bxd5 {[%clk 0:00:03]} 46. Rd3 {[%clk 0:00:10]}  Bc4 {[%clk 0:00:02]} 47. Rh3 {[%clk 0:00:10]}  Bxf1 {[%clk 0:00:02]} 48. Rh8# {[%clk 0:00:10]} 1-0


[Site "https://www.chess.com"]

[Event "Titled Tuesday Blitz February 21 Early 2023"]
[White "Torres Boch, Jose Francisco"]
[Black "Rose, Felix"]
[WhiteFideId "2278383"]
[BlackFideId "5105722"]
[WhiteElo "2180"]
[BlackElo "2091"]
[Result "1-0"]
[Round "09"]
[TimeControl "180+2"]
[Date "2023.02.21"]
[WhiteClock "0:00:57"]
[BlackClock "0:00:09"]

1. e4 {[%clk 0:02:56]}  e5 {[%clk 0:02:59]} 2. Nf3 {[%clk 0:02:56]}  Nc6 {[%clk 0:02:59]} 3. Bb5 {[%clk 0:02:57]}  a6 {[%clk 0:02:59]} 4. Ba4 {[%clk 0:02:57]}  Nf6 {[%clk 0:02:58]} 5. O-O {[%clk 0:02:57]}  Be7 {[%clk 0:02:56]} 6. Re1 {[%clk 0:02:57]}  b5 {[%clk 0:02:56]} 7. Bb3 {[%clk 0:02:58]}  d6 {[%clk 0:02:56]} 8. c3 {[%clk 0:02:58]}  O-O {[%clk 0:02:53]} 9. h3 {[%clk 0:02:59]}  Nb8 {[%clk 0:02:53]} 10. d4 {[%clk 0:02:56]}  Nbd7 {[%clk 0:02:53]} 11. c4 {[%clk 0:02:56]}  c6 {[%clk 0:02:42]} 12. d5 {[%clk 0:02:55]}  cxd5 {[%clk 0:02:41]} 13. cxd5 {[%clk 0:02:54]}  Bb7 {[%clk 0:02:41]} 14. a4 {[%clk 0:02:52]}  Nb6 {[%clk 0:02:39]} 15. a5 {[%clk 0:02:51]}  Nbd7 {[%clk 0:02:28]} 16. Nc3 {[%clk 0:02:51]}  Nc5 {[%clk 0:02:26]} 17. Bc2 {[%clk 0:02:50]}  b4 {[%clk 0:02:26]} 18. Na4 {[%clk 0:02:49]}  Nxa4 {[%clk 0:02:23]} 19. Rxa4 {[%clk 0:02:50]}  Nd7 {[%clk 0:02:20]} 20. Rxb4 {[%clk 0:02:47]}  Nc5 {[%clk 0:02:10]} 21. Rb6 {[%clk 0:02:39]}  Qc8 {[%clk 0:02:06]} 22. Be3 {[%clk 0:02:26]}  Bd8 {[%clk 0:01:55]} 23. Rxd6 {[%clk 0:02:19]}  Bxa5 {[%clk 0:01:54]} 24. Bd2 {[%clk 0:02:13]}  Bc7 {[%clk 0:01:48]} 25. Rc6 {[%clk 0:02:03]}  Bxc6 {[%clk 0:01:46]} 26. dxc6 {[%clk 0:02:04]}  Qe6 {[%clk 0:01:43]} 27. Ba4 {[%clk 0:01:55]}  Rab8 {[%clk 0:01:41]} 28. b4 {[%clk 0:01:55]}  Nd3 {[%clk 0:01:28]} 29. Re3 {[%clk 0:01:50]}  Nxb4 {[%clk 0:01:27]} 30. Ng5 {[%clk 0:01:33]}  Qd6 {[%clk 0:01:13]} 31. Qe1 {[%clk 0:01:29]}  Nxc6 {[%clk 0:01:03]} 32. Rg3 {[%clk 0:01:22]}  Nd4 {[%clk 0:00:56]} 33. Kh2 {[%clk 0:01:18]}  Kh8 {[%clk 0:00:49]} 34. Qd1 {[%clk 0:01:16]}  f6 {[%clk 0:00:42]} 35. Nxh7 {[%clk 0:01:01]}  Kxh7 {[%clk 0:00:37]} 36. Qh5+ {[%clk 0:00:57]}  Kg8 {[%clk 0:00:35]} 37. Rxg7+ {[%clk 0:00:57]}  Kxg7 {[%clk 0:00:35]} 38. Bh6+ {[%clk 0:00:57]}  Kh7 {[%clk 0:00:09]} 39. Bxf8+ {[%clk 0:00:57]}  Kg8 {[%clk 0:00:09]} 40. Bxd6 {[%clk 0:00:57]}  Bxd6 {[%clk 0:00:09]} 41. Qg6+ {[%clk 0:00:58]}  Kf8 {[%clk 0:00:09]} 42. Qxf6+ {[%clk 0:00:58]}  Kg8 {[%clk 0:00:09]} 43. Qxd6 {[%clk 0:00:57]} 1-0


[Site "https://www.chess.com"]

[Event "Titled Tuesday Blitz February 21 Early 2023"]
[White "Kiseljova, Marya"]
[Black "Fajdetic, Hrvoje"]
[WhiteFideId "4155009"]
[BlackFideId "14501945"]
[WhiteElo "2031"]
[BlackElo "2151"]
[Result "0-1"]
[Round "09"]
[TimeControl "180+2"]
[Date "2023.02.21"]
[WhiteClock "0:00:13"]
[BlackClock "0:00:13"]

1. d4 {[%clk 0:02:58]}  c6 {[%clk 0:02:57]} 2. c4 {[%clk 0:02:57]}  d5 {[%clk 0:02:55]} 3. cxd5 {[%clk 0:02:54]}  cxd5 {[%clk 0:02:56]} 4. Nf3 {[%clk 0:02:54]}  Nc6 {[%clk 0:02:56]} 5. Bf4 {[%clk 0:02:53]}  e6 {[%clk 0:02:50]} 6. e3 {[%clk 0:02:52]}  Bd6 {[%clk 0:02:50]} 7. Ne5 {[%clk 0:02:45]}  Nf6 {[%clk 0:02:49]} 8. Nc3 {[%clk 0:02:36]}  a6 {[%clk 0:02:47]} 9. Be2 {[%clk 0:02:21]}  Qc7 {[%clk 0:02:47]} 10. Nxc6 {[%clk 0:02:15]}  bxc6 {[%clk 0:02:48]} 11. Bxd6 {[%clk 0:02:14]}  Qxd6 {[%clk 0:02:49]} 12. O-O {[%clk 0:02:08]}  e5 {[%clk 0:02:48]} 13. Na4 {[%clk 0:02:04]}  O-O {[%clk 0:02:37]} 14. Rc1 {[%clk 0:02:01]}  Rb8 {[%clk 0:02:26]} 15. b3 {[%clk 0:02:00]}  exd4 {[%clk 0:02:19]} 16. exd4 {[%clk 0:01:59]}  Re8 {[%clk 0:01:41]} 17. Bd3 {[%clk 0:01:53]}  Ng4 {[%clk 0:01:37]} 18. g3 {[%clk 0:01:40]}  Qh6 {[%clk 0:01:37]} 19. h4 {[%clk 0:01:34]}  g5 {[%clk 0:01:33]} 20. Be2 {[%clk 0:01:11]}  Re4 {[%clk 0:00:32]} 21. Bxg4 {[%clk 0:00:56]}  Rxg4 {[%clk 0:00:29]} 22. hxg5 {[%clk 0:00:51]}  Qxg5 {[%clk 0:00:25]} 23. Rxc6 {[%clk 0:00:24]}  Bf5 {[%clk 0:00:15]} 24. Qc1 {[%clk 0:00:18]}  Rxg3+ {[%clk 0:00:12]} 25. fxg3 {[%clk 0:00:14]}  Qxg3+ {[%clk 0:00:13]} 26. Kh1 {[%clk 0:00:13]}  Be4+ {[%clk 0:00:13]} 0-1


[Site "https://www.chess.com"]

[Event "Titled Tuesday Blitz February 21 Early 2023"]
[White "Buganca, Luiz Henrique Da Silva"]
[Black "Dias, Joao Batista"]
[WhiteFideId "2182289"]
[BlackFideId "2108240"]
[WhiteElo "1920"]
[BlackElo "1796"]
[Result "0-1"]
[Round "09"]
[TimeControl "180+2"]
[Date "2023.02.21"]
[WhiteClock "0:00:41"]
[BlackClock "0:00:47"]

1. e4 {[%clk 0:03:00]}  e6 {[%clk 0:02:44]} 2. d4 {[%clk 0:02:55]}  d5 {[%clk 0:02:44]} 3. Nc3 {[%clk 0:02:56]}  dxe4 {[%clk 0:02:44]} 4. Nxe4 {[%clk 0:02:56]}  Nd7 {[%clk 0:02:44]} 5. Bd3 {[%clk 0:02:54]}  Ngf6 {[%clk 0:02:44]} 6. Ng3 {[%clk 0:02:54]}  g6 {[%clk 0:02:43]} 7. Nf3 {[%clk 0:02:54]}  Bg7 {[%clk 0:02:43]} 8. O-O {[%clk 0:02:55]}  O-O {[%clk 0:02:43]} 9. h4 {[%clk 0:02:55]}  h5 {[%clk 0:02:42]} 10. Bg5 {[%clk 0:02:54]}  c6 {[%clk 0:02:39]} 11. Re1 {[%clk 0:02:52]}  Qa5 {[%clk 0:02:32]} 12. Ne5 {[%clk 0:02:49]}  Nxe5 {[%clk 0:02:30]} 13. dxe5 {[%clk 0:02:48]}  Nh7 {[%clk 0:02:29]} 14. Nxh5 {[%clk 0:02:42]}  Nxg5 {[%clk 0:02:18]} 15. hxg5 {[%clk 0:02:43]}  Bxe5 {[%clk 0:02:17]} 16. Qg4 {[%clk 0:02:17]}  Bxb2 {[%clk 0:02:11]} 17. Rab1 {[%clk 0:01:56]}  gxh5 {[%clk 0:01:46]} 18. Qxh5 {[%clk 0:01:49]}  Rd8 {[%clk 0:01:36]} 19. Qh7+ {[%clk 0:01:29]}  Kf8 {[%clk 0:01:36]} 20. Re3 {[%clk 0:01:20]}  Bg7 {[%clk 0:01:30]} 21. Rf3 {[%clk 0:01:13]}  Qxg5 {[%clk 0:01:24]} 22. Rb4 {[%clk 0:00:57]}  Qc1+ {[%clk 0:01:20]} 23. Bf1 {[%clk 0:00:54]}  Rd1 {[%clk 0:01:11]} 24. Rxf7+ {[%clk 0:00:41]}  Kxf7 {[%clk 0:01:10]} 25. Qh5+ {[%clk 0:00:42]}  Ke7 {[%clk 0:00:55]} 26. Qh4+ {[%clk 0:00:41]}  Bf6 {[%clk 0:00:48]} 27. Qh7+ {[%clk 0:00:41]}  Kd6 {[%clk 0:00:47]} 0-1


[Site "https://www.chess.com"]

[Event "Titled Tuesday Blitz February 21 Early 2023"]
[White "babbilator"]
[Black "Shubin, Daniel"]
[BlackFideId "30936470"]
[WhiteElo "2129"]
[BlackElo "2231"]
[Result "1-0"]
[Round "09"]
[TimeControl "180+2"]
[Date "2023.02.21"]
[WhiteClock "0:01:58"]
[BlackClock "0:01:49"]

1. e4 {[%clk 0:03:00]}  e6 {[%clk 0:02:59]} 2. Nc3 {[%clk 0:02:58]}  d5 {[%clk 0:03:00]} 3. d4 {[%clk 0:02:58]}  Bb4 {[%clk 0:02:59]} 4. exd5 {[%clk 0:02:55]}  exd5 {[%clk 0:02:58]} 5. Bd3 {[%clk 0:02:53]}  Nc6 {[%clk 0:02:58]} 6. a3 {[%clk 0:02:51]}  Bxc3+ {[%clk 0:02:50]} 7. bxc3 {[%clk 0:02:48]}  Nge7 {[%clk 0:02:51]} 8. Qh5 {[%clk 0:02:40]}  Be6 {[%clk 0:02:43]} 9. Rb1 {[%clk 0:02:22]}  Na5 {[%clk 0:02:38]} 10. Nf3 {[%clk 0:02:17]}  Qd7 {[%clk 0:02:20]} 11. Ne5 {[%clk 0:02:13]}  Qa4 {[%clk 0:02:13]} 12. Rb4 {[%clk 0:02:00]}  g6 {[%clk 0:01:49]} 13. Qg5 {[%clk 0:01:58]} 1-0


[Site "https://www.chess.com"]

[Event "Titled Tuesday Blitz February 21 Early 2023"]
[White "Tsyhanchuk, Stanislav"]
[Black "Jaivardhan Raj"]
[WhiteFideId "13505130"]
[BlackFideId "25744437"]
[WhiteElo "2273"]
[BlackElo "1901"]
[Result "1-0"]
[Round "09"]
[TimeControl "180+2"]
[Date "2023.02.21"]
[WhiteClock "0:00:44"]
[BlackClock "0:00:04"]

1. c4 {[%clk 0:03:00]}  e5 {[%clk 0:02:59]} 2. Nc3 {[%clk 0:02:58]}  c5 {[%clk 0:02:58]} 3. g3 {[%clk 0:02:58]}  Nc6 {[%clk 0:02:57]} 4. Bg2 {[%clk 0:02:59]}  d6 {[%clk 0:02:55]} 5. e3 {[%clk 0:02:58]}  Nge7 {[%clk 0:02:54]} 6. Nge2 {[%clk 0:02:58]}  g6 {[%clk 0:02:54]} 7. O-O {[%clk 0:02:58]}  Bg7 {[%clk 0:02:54]} 8. a3 {[%clk 0:02:58]}  O-O {[%clk 0:02:52]} 9. h3 {[%clk 0:02:58]}  Be6 {[%clk 0:02:51]} 10. Nd5 {[%clk 0:02:57]}  Kh8 {[%clk 0:02:36]} 11. Kh2 {[%clk 0:02:56]}  Rb8 {[%clk 0:02:36]} 12. Nec3 {[%clk 0:02:54]}  a6 {[%clk 0:02:30]} 13. b4 {[%clk 0:02:45]}  cxb4 {[%clk 0:02:29]} 14. axb4 {[%clk 0:02:44]}  Bxd5 {[%clk 0:02:25]} 15. cxd5 {[%clk 0:02:40]}  Nxb4 {[%clk 0:02:23]} 16. Qb3 {[%clk 0:02:39]}  Nd3 {[%clk 0:02:16]} 17. Ba3 {[%clk 0:02:35]}  Nc5 {[%clk 0:02:05]} 18. Bxc5 {[%clk 0:02:14]}  dxc5 {[%clk 0:02:05]} 19. Na4 {[%clk 0:02:13]}  e4 {[%clk 0:01:53]} 20. Bxe4 {[%clk 0:02:08]}  Bxa1 {[%clk 0:01:52]} 21. Rxa1 {[%clk 0:02:09]}  b6 {[%clk 0:01:49]} 22. Nc3 {[%clk 0:02:06]}  f5 {[%clk 0:01:44]} 23. Bg2 {[%clk 0:02:05]}  a5 {[%clk 0:01:36]} 24. Nb5 {[%clk 0:02:05]}  Rc8 {[%clk 0:01:34]} 25. d6 {[%clk 0:02:04]}  Nc6 {[%clk 0:01:31]} 26. Qc3+ {[%clk 0:01:50]}  Qf6 {[%clk 0:01:24]} 27. Qxf6+ {[%clk 0:01:48]}  Rxf6 {[%clk 0:01:24]} 28. d4 {[%clk 0:01:24]}  cxd4 {[%clk 0:01:15]} 29. Rc1 {[%clk 0:01:23]}  d3 {[%clk 0:01:00]} 30. d7 {[%clk 0:01:17]}  Rd8 {[%clk 0:00:59]} 31. Rxc6 {[%clk 0:01:16]}  d2 {[%clk 0:00:37]} 32. Nc3 {[%clk 0:01:10]}  Rxc6 {[%clk 0:00:35]} 33. Bxc6 {[%clk 0:01:09]}  Kg7 {[%clk 0:00:34]} 34. Kg2 {[%clk 0:01:03]}  Kf7 {[%clk 0:00:33]} 35. Kf1 {[%clk 0:01:03]}  Ke7 {[%clk 0:00:33]} 36. Ke2 {[%clk 0:01:00]}  Kd6 {[%clk 0:00:23]} 37. Ba4 {[%clk 0:00:58]}  Kc5 {[%clk 0:00:19]} 38. Kxd2 {[%clk 0:00:57]}  Rb8 {[%clk 0:00:12]} 39. f3 {[%clk 0:00:55]}  Kb4 {[%clk 0:00:11]} 40. e4 {[%clk 0:00:54]}  fxe4 {[%clk 0:00:11]} 41. fxe4 {[%clk 0:00:55]}  Kc5 {[%clk 0:00:11]} 42. e5 {[%clk 0:00:49]}  Rd8 {[%clk 0:00:10]} 43. Kd3 {[%clk 0:00:48]}  g5 {[%clk 0:00:09]} 44. g4 {[%clk 0:00:48]}  h6 {[%clk 0:00:09]} 45. Bb5 {[%clk 0:00:46]}  Kb4 {[%clk 0:00:06]} 46. e6 {[%clk 0:00:44]}  Kc5 {[%clk 0:00:05]} 47. e7 {[%clk 0:00:44]}  Kd6 {[%clk 0:00:04]} 48. exd8=Q {[%clk 0:00:44]} 1-0


[Site "https://www.chess.com"]